Cogmind - Beta 13 @@@ ROGUE MODE // 2024.06.30 @ 13:43:10 Player: keygenpie Result: Destroyed by G-47 Trooper with Particle Gun Performance ------------- Evolutions (2) 1000 Regions Visited (3) 600 Robots Destroyed (42) 210 Value Destroyed (1031) 1031 Prototype IDs (1) 20 Alien Tech Used (0) 0 Bonus (0) 0 TOTAL SCORE: 2861 Bonus ------- None Cogmind --------- Core Integrity 0/550 Matter 212/300 Energy 100/100 System Corruption 0% Temperature Cool (18) Movement Core (700) Ox13 Location -8/Materials Parts ------- > --- POWER (3) -------- (None) > --- PROPULSION (2) --- (None) > --- UTILITY (3) ------ High-capacity Storage Unit > --- WEAPON (3) ------- Improved Datajack > --- INVENTORY (20) --- Compact Wheel Compact Wheel Small Storage Unit Small Storage Unit Small Storage Unit ECM Suite Light Armor Plating Tractor Beam Peak State ------------ > --- POWER ------------ Ion Engine Light Ion Engine Improved Ion Engine > --- PROPULSION ------- Advanced Treads Advanced Treads > --- UTILITY ---------- High-capacity Storage Unit Particle Charger Particle Charger > --- WEAPON ----------- Small Laser Particle Gun Improved Datajack > --- INVENTORY -------- Compact Wheel Compact Wheel Small Storage Unit Small Storage Unit Small Storage Unit Particle Charger ECM Suite Light Armor Plating Tractor Beam Assault Rifle Light Assault Rifle Shotgun Grenade Launcher Improved Datajack Welding Torch [Rating: 25] Favorites ----------- Power Light Ion Engine Engine Light Ion Engine Propulsion Advanced Treads Treads Advanced Treads Leg Aluminum Leg Wheel Wheel Hover Unit Airjet Utility High-capacity Storage Unit Device Particle Charger Storage High-capacity Storage Unit Processor Visual Processing Unit Weapon Particle Gun Energy Gun Particle Gun Energy Cannon Advanced Beam Cannon Ballistic Gun Assault Rifle Launcher Grenade Launcher Special Weapon Welding Torch Special Melee Weapon Improved Datajack Build | -11 -10 -9 -8 ------- Run | Yrd Mat Mat Mat Slots Evolved 4 | . . 2 2 Power 2 | . . 1 1 Propulsion . | . . . . Utility 1 | . . 1 . Weapon 1 | . . . 1 Parts Attached 68 | 6 14 36 12 Power 13 | 1 2 9 1 Engine 13 | 1 2 9 1 Core . | . . . . Reactor . | . . . . Propulsion 12 | 2 2 8 . Treads 2 | . . 2 . Leg 3 | . 2 1 . Wheel 4 | 2 . 2 . Hover 3 | . . 3 . Flight . | . . . . Utility 17 | 1 6 9 1 Device 9 | . 2 6 1 Storage 5 | 1 2 2 . Processor 3 | . 2 1 . Hackware . | . . . . Protection . | . . . . Artifact . | . . . . Weapon 26 | 2 4 10 10 Energy Gun 5 | . 1 2 2 Energy Cannon 2 | . . 2 . Ballistic Gun 12 | 2 1 4 5 Ballistic Cannon . | . . . . Launcher 3 | . 1 1 1 Special Weapon 2 | . 1 . 1 Impact Weapon . | . . . . Slashing Weapon . | . . . . Piercing Weapon . | . . . . Special Melee Weapon 2 | . . 1 1 Unidentified Prototypes . | . . . . Parts Lost 19 | . 1 2 16 Power 5 | . . 2 3 Propulsion 2 | . . . 2 Utility 4 | . 1 . 3 Weapon 8 | . . . 8 Highest Loss Streak 16 | . 1 1 16 To Critical Strikes . | . . . . Average Slot Usage (%) 94 | . 92 98 71 Engine 18 | . 14 21 17 Treads 6 | . . 8 14 Leg 6 | . 15 3 . Wheel 3 | . 9 1 . Hover 5 | . . 8 . Device 11 | . 9 12 8 Storage 13 | . 11 14 9 Processor 5 | . 5 5 . Energy Gun 7 | . 9 6 8 Energy Cannon 1 | . . 2 . Ballistic Gun 6 | . 7 5 5 Launcher 2 | . 1 2 . Special Weapon 1 | . 6 . . Special Melee Weapon 2 | . . 3 6 Naked Turns . | . . . . Heaviest Build 66 | 8 9 61 66 Greatest Support 44 | 20 20 44 44 Greatest Overweight (x) 13 | . . 7 13 Average Overweight (x) . | . . 1 1 Largest Inventory Capacity 20 | 5 5 20 20 Average Capacity 15 | 5 5 19 20 Most Carried 18 | 4 5 18 16 Average Carried 8 | 2 3 10 13 Final Capacity 20 | 5 5 20 20 Final Carried 17 | 3 5 17 8 Class Distribution -------------------- 76% | Mutant 23% | Scavenger-Mutant Dominant Class ---------------- Mutant | -10/Materials Mutant | -9/Materials Scavenger-Mutant | -8/Materials Resources | -11 -10 -9 -8 ----------- Run | Yrd Mat Mat Mat Matter Collected 1229 | 312 217 584 116 Remotely . | . . . . Salvage Created 1275 | 48 239 721 267 Parts 84 | 4 19 42 19 Haulers Intercepted . | . . . . Recyclers Shooed 3 | . . 2 1 Parts Field Recycled . | . . . . Retrieved Matter . | . . . . Parts Self-Destructed . | . . . . Prevented . | . . . . Kills | -11 -10 -9 -8 ------- Run | Yrd Mat Mat Mat Combat Hostiles Destroyed 26 | 1 7 13 5 Guns 19 | 1 5 9 4 Cannons 4 | . . 4 . AOE 3 | . 2 . 1 Classes Destroyed 8 | 2 2 3 1 Worker 4 | 1 2 . 1 Builder 2 | . . . 2 Recycler 3 | . . 3 . Operator 1 | . . 1 . Watcher 6 | . 3 3 . Swarmer 7 | . 3 4 . Grunt 13 | 1 4 5 3 Sentry 6 | . . 4 2 Best Kill Streak 4 | 1 4 4 4 Combat Bots Only 3 | 1 3 3 3 Max Kills in Single Turn 2 | 1 2 1 2 Gunslinging . | . . . . Exploded 1 | . 1 . 1 Melee . | . . . . Uniques/NPCs Destroyed . | . . . . Combat | -11 -10 -9 -8 -------- Run | Yrd Mat Mat Mat Hostile Shots Fired 306 | 3 44 127 132 Missed 82 | 2 17 36 27 Damage Taken 3127 | 11 399 1038 1679 Core 823 | . 68 201 554 Absorbed by Shields . | . . . . Regen/Repaired (Parts) 42 | . 30 12 . Core Remaining (%) 73 | 100 72 49 . Volleys Fired 123 | 5 32 56 30 Largest 2 | 2 2 2 2 Hottest 133 | 40 85 133 105 Shots Fired 202 | 10 50 93 49 Gun 166 | 10 41 72 43 Cannon 17 | . . 17 . Launcher 15 | . 8 4 3 Special 4 | . 1 . 3 Kinetic 117 | 10 26 50 31 Thermal 70 | . 16 39 15 Explosive 15 | . 8 4 3 Electromagnetic . | . . . . Robot Hit Streak 7 | 6 6 7 7 Robot Miss Streak 5 | 1 4 5 3 Penetration Max . | . . . . Secondary Targets 4 | . . 2 2 Max Gunslinging Chain 1 | . . 1 1 Shots Hit Robots 129 | 8 26 58 37 Core Hits 75 | 3 19 26 27 Critical Kills . | . . . . Critical Parts Destroyed . | . . . . Critical Strikes 1 | . . . 1 Burn 1 | . . . 1 Melee Attacks 8 | . . 5 3 Impact . | . . . . Slashing . | . . . . Piercing . | . . . . Sneak Attacks 5 | . . 5 . Combat Hostiles . | . . . . Follow-up Attacks . | . . . . Damage Inflicted 2485 | 94 620 990 781 Guns 1551 | 94 333 644 480 Cannons 244 | . . 244 . Explosions 672 | . 283 96 293 Melee . | . . . . Ramming 10 | . 4 6 . Kinetic 1033 | 94 217 364 358 Thermal 770 | . 116 524 130 Explosive 672 | . 283 96 293 Electromagnetic . | . . . . Impact . | . . . . Slashing . | . . . . Piercing . | . . . . Highest Corruption . | . . . . Average Corruption . | . . . . Corruption Purged . | . . . . Corruption Blocked . | . . . . Overload Shots . | . . . . Overflow Damage 11 | . . 1 10 Projectiles 1 | . . 1 . Explosions 10 | . . . 10 Melee . | . . . . Knockbacks . | . . . . Impact . | . . . . Kinetic . | . . . . Secondary . | . . . . Self-Inflicted Damage 148 | . 67 40 41 Shots 7 | . 4 1 2 Rammed 3 | . 2 1 . Targets Rammed 3 | . 2 1 . Kicked . | . . . . Crushed . | . . . . Highest Temperature 446 | . 10 356 446 Average Temperature 148 | . 4 119 235 Received Heat Transfer 1497 | 6 129 345 1017 Effects 11 | . . 3 8 Shutdowns 6 | . . 1 5 Energy Bleed 1 | . . . 1 Interference 2 | . . 1 1 Matter Decay 1 | . . . 1 Short Circuit 1 | . . 1 . Siege Activations . | . . . . Robots Corrupted . | . . . . Combat Hostiles . | . . . . Parts Fried . | . . . . Impact Corruptions . | . . . . Robots Melted . | . . . . Combat Hostiles . | . . . . Parts Melted 4 | . 1 3 . Heat Transferred 1679 | . 259 1036 384 Parts Sabotaged . | . . . . Parts Stolen . | . . . . Parts Stripped . | . . . . Power Chain Reactions . | . . . . Alert | -11 -10 -9 -8 ------- Run | Yrd Mat Mat Mat Peak Influence 301 | 25 301 262 64 Initial 45 | . 16 45 . Average 98 | 5 151 92 16 Maximum Alert Level 1 | . 1 1 . Low Security (%) 85 | 100 70 88 100 Level 1 14 | . 29 11 . Level 2 . | . . . . Level 3 . | . . . . Level 4 . | . . . . Level 5 . | . . . . High Security . | . . . . Max Security . | . . . . Squads Dispatched 9 | . 1 5 3 Investigation 2 | . . 2 . Extermination . | . . . . Reinforcement 5 | . 1 3 1 Assault . | . . . . Garrison 2 | . . . 2 Intercept . | . . . . Searches Triggered . | . . . . Construction Impeded . | . . . . Haulers Reinforced . | . . . . Active Scanning Responses . | . . . . Cargo Convoy Interrupts . | . . . . Stealth | -11 -10 -9 -8 --------- Run | Yrd Mat Mat Mat Distress Signals 4 | . . 2 2 Communications Jammed . | . . . . Distress Signals . | . . . . Times Spotted 50 | 1 11 21 17 Peak Tracking Total 9 | 1 3 4 9 Tactical Retreats 2 | . . 2 . Traps | -11 -10 -9 -8 ------- Run | Yrd Mat Mat Mat Traps Triggered 3 | . 1 2 . Indirectly . | . . . . Trap Hack Attempts . | . . . . Triggered . | . . . . Disarmed . | . . . . Reprogrammed . | . . . . Reused . | . . . . Traps Extracted . | . . . . Installed . | . . . . Triggered . | . . . . Machines | -11 -10 -9 -8 ---------- Run | Yrd Mat Mat Mat Machines Disabled 4 | . 3 . 1 Max in Single Turn 1 | . 1 . 1 Machines Repaired . | . . . . Machines Dismantled . | . . . . Machines Sabotaged . | . . . . Overloaded Fab Kills . | . . . . Hacking | -11 -10 -9 -8 --------- Run | Yrd Mat Mat Mat Machines Accessed 13 | . 6 6 1 Terminals 9 | . 4 4 1 Fabricators . | . . . . Repair Stations 2 | . 1 1 . Recycling Units 1 | . 1 . . Scanalyzers 1 | . . 1 . Garrison Access . | . . . . Total Hacks 38 | . 12 22 4 Successful 23 | . 7 14 2 Failed 14 | . 5 7 2 Catastrophic 2 | . . 2 . Database Lockouts 1 | . . 1 . Manual . | . . . . Terminals 26 | . 6 16 4 Fabricators . | . . . . Repair Stations 6 | . 4 2 . Recycling Units 2 | . 2 . . Scanalyzers 4 | . . 4 . Garrison Access . | . . . . Terminal Hacks 15 | . 4 9 2 Record 10 | . 2 7 1 Alert Level 1 | . . . 1 Locate Traps 2 | . 1 1 . Dispatch Records 1 | . 1 . . Hauler Manifests 1 | . . 1 . Fabricator Hacks . | . . . . Repair Station Hacks 4 | . 2 2 . Scan Component 2 | . 1 1 . Repair 2 | . 1 1 . Recycling Unit Hacks 1 | . 1 . . Retrieve Matter 1 | . 1 . . Scanalyzer 3 | . . 3 . Insert Component 1 | . . 1 . Analyze 2 | . . 2 . Garrison Access Hacks . | . . . . Unauthorized Hacks . | . . . . Terminals . | . . . . Fabricators . | . . . . Repair Stations . | . . . . Recycling Units . | . . . . Scanalyzers . | . . . . Garrison Access . | . . . . Data Cores Recovered 1 | . . 1 . Used . | . . . . Hacking Detections 9 | . 5 4 . Full Trace Events 2 | . . 2 . Feedback Events . | . . . . Feedback Blocked . | . . . . Robot Schematics Acquired . | . . . . Robots Built . | . . . . Authchips . | . . . . Time . | . . . . Total Robot Build Rating . | . . . . Part Schematics Acquired 1 | . . 1 . Parts Built . | . . . . Authchips . | . . . . Time . | . . . . Total Part Build Rating . | . . . . Parts Repaired 2 | . 1 1 . Time 64 | . 26 38 . Parts Recycled . | . . . . Recycled Matter . | . . . . Retrieved Matter . | . . . . Retrieved Components . | . . . . Parts Scanalyzed 1 | . . 1 . Part Schematics Acquired 1 | . . 1 . Parts Damaged . | . . . . Bothacking | -11 -10 -9 -8 ------------ Run | Yrd Mat Mat Mat Used RIF Installer . | . . . . Robots Hacked 4 | . . 3 1 Non-combat 3 | . . 3 . Combat 1 | . . . 1 Robot Hacks Applied 5 | . . 4 1 parse_system 2 | . . 1 1 no_distress 3 | . . 3 . Relay Couplers Released . | . . . . Fabnet Peak Effective % . | . . . . Robots Rewired . | . . . . Allies Hacked . | . . . . Hacks Repelled . | . . . . Allies | -11 -10 -9 -8 -------- Run | Yrd Mat Mat Mat Total Allies . | . . . . Largest Group . | . . . . Highest-Rated Group . | . . . . Highest-Rated Ally . | . . . . Total Orders . | . . . . Ally Attacks . | . . . . Total Damage . | . . . . Kills . | . . . . Allies Corrupted . | . . . . Allies Melted . | . . . . Intel | -11 -10 -9 -8 ------- Run | Yrd Mat Mat Mat Robot Analysis Total . | . . . . Derelict Logs Recovered . | . . . . Drone Launches . | . . . . Drone Recoveries . | . . . . Exploration | -11 -10 -9 -8 ------------- Run | Yrd Mat Mat Mat Turns Passed 2549 | 87 647 1623 192 Spaces Moved 1210 | 84 480 606 40 Core 35 | 33 . . 2 Treads 264 | . . 226 38 Legs 364 | . 294 70 . Wheels 311 | 51 186 74 . Hover 236 | . . 236 . Flight . | . . . . Fastest Speed 50 | 50 80 115 145 Average Speed 164 | 68 104 218 246 Slowest Speed 700 | 80 120 480 700 Overloaded Moves . | . . . . Propulsion Burnouts . | . . . . Robots Hopped . | . . . . Cave-ins Triggered . | . . . . Exploration Rate (%) 31 | 5 72 40 8 Regions Visited 3 Branch Regions . Pre-discovered Areas . | . . . . Known Exits Taken . | . . . . Unknown Exits Taken 3 | 1 1 1 . Scrap Searched . | . . . . Spaces Dug . | . . . . Terrain Destroyed 107 | . 57 34 16 Melee . | . . . . Projectile . | . . . . AOE 107 | . 57 34 16 Terrain Rammed . | . . . . Walls Destroyed . | . . . . Machines Disabled . | . . . . Actions | -11 -10 -9 -8 --------- Run | Yrd Mat Mat Mat Total 1593 | 103 580 823 87 Wait 73 | . 24 49 . Move 1207 | 83 479 605 40 Hop . | . . . . Pick Up 68 | 9 17 42 . Fast Attach . | . . . . Attach 66 | 6 13 36 11 Detach 10 | . . 8 2 Swap 2 | . 1 . 1 Drop 33 | . 12 21 . Fire 123 | 5 32 56 30 Melee 8 | . . 5 3 Ram 3 | . 2 1 . Kick . | . . . . Crush . | . . . . Escape Stasis . | . . . . Rewire . | . . . . Trap . | . . . . Miscellaneous . | . . . . Route ------- -11/Scrapyard -10/Materials (discovered 2 exits: *Mat x2) -9/Materials -8/Materials History --------- Turn | Location | Event 2 | -11/Scrapyard | Met Revision 17 65 | -11/Scrapyard | Discovered new exit (range 8) 88 | -11/Scrapyard | Entered Materials 301 | -10/Materials | Build established: Mutant 330 | -10/Materials | Discovered new exit (range 9) 650 | -10/Materials | Repaired Aluminum Leg 703 | -10/Materials | Discovered new exit (range 16) 735 | -10/Materials | Entered another Materials area 735 | -9/Materials | Evolved 2 slots: Power x1, Utility x1 1963 | -9/Materials | Central database locked down 2046 | -9/Materials | Core integrity fell below 50% 2283 | -9/Materials | Repaired Particle Charger 2347 | -9/Materials | Discovered new exit (range 4) 2358 | -9/Materials | Entered another Materials area 2358 | -8/Materials | Evolved 2 slots: Power x1, Weapon x1 2426 | -8/Materials | Garrison activated, responded to threat 2540 | -8/Materials | Core integrity fell below 50% 2547 | -8/Materials | Core integrity fell below 20% 2550 | -8/Materials | Destroyed by G-47 Trooper with Particle Gun Last Messages --------------- 02528_ U-05 Engineer destroyed. 02529_ U-05 Engineer lays Concrete. 02530_ Terminal disabled. 02530_ U-05 Engineer destroyed. 02531_ K-01 Serf cleans the Fusion Modulator. 02532_ Critical hit (Burn: +37). 02533_ G-47 Trooper destroyed. 02533_ Grenade Launcher destroyed. 02533_ Destroyed Grenade Launcher. 02533_ K-01 Serf destroyed. 02533_ Destroyed Lgt. Nuclear Core. 02534_ K-01 Serf cleans the Fusion Modulator. 02540_ Sml. Laser destroyed. 02542_ Critical hit (Burn: +37). 02545_ U-05 Engineer lays Concrete. 02546_ U-05 Engineer builds a Wall. 02546_ Critical hit (Burn: +37). 02547_ U-05 Engineer lays Concrete. 02549_ U-05 Engineer builds a Wall. 02549_ U-05 Engineer lays Concrete. Map ----- +----------------------------------------------------+ | | | | | | | | | ?????????????????????????????????????????????????? | | ?????????????????????????????????????????????????? | | ?????????????????????????????????????????????????? | | ?????????????????????????????????????????????????? | | ?????????????????????????????????????????????????? | | ?????????????????????????????????????????????????? | | ??????????#####??????????????????????????????????? | | ########### #??????????????????????????????????? | | #??????????????????????????????????? | | #??????????????????????????????????? | | ########### +??????????????????????????????????? | | ??????##! #??????????????????????????????????? | | ??????#! #?#############????????????????????? | | ??????#! #?# +????????????????????? | | ??????#! #?# #????????????????????? | | ??????#! #?# ] l #???#????????????????? | | ??????##! #?# #?? #????????????????? | | ???????#### #?# #?= #????????????????? | | ??????????# #?# # %!#????????????????? | | ??????????# #?# g g % ##???????????????? | | ?????????## ########### ] #???????????????? | | ????###### @g b% ^"""???????????? | | gg """???????????? | | T ########## u | o ?????????? | | #???????? ##u!# | S?????????? | | ########## #??????? #?=u## "?????????? | | ?????????#######?????? #??!#???###??????????? | | ????????????????????# """ #???T#???????????????? | | ????????????????????# """ ! #????#???????????????? | | ????????????????????# """ #????????????????????? | | ????????????????????# #????????????????????? | | ???????????????????????"" #????????????????????? | | ????????????????????????" !#????????????????????? | | ????????????????????????" #????????????????????? | | ???????????????????????? #????????????????????? | | ????????????????????????#####????????????????????? | | ?????????????????????????????????????????????????? | | ?????????????????????????????????????????????????? | | ?????????????????????????????????????????????????? | | ?????????????????????????????????????????????????? | | ?????????????????????????????????????????????????? | | ?????????????????????????????????????????????????? | | ?????????????????????????????????????????????????? | | ?????????????????????????????????????????????????? | | ?????????????????????????????????????????????????? | | ?????????????????????????????????????????????????? | +----------------------------------------------------+ Best States ------------- Heat Dissipation 39 Energy Generation 22 Energy Capacity 515 Matter Stores 350 Matter Capacity 350 Sight Range 18 Robot Scan Range 14 Terrain Scan Density 10 ECM Strength 1 Evasion (%) 55 Targeting Accuracy 5 Recoil Reduction 2 Particle Charging 22 Item Schematics ----------------- Adv. Beam Cannon | -9/Materials | Scanalyzed Robot Schematics ------------------ None Fabricated ------------ Nothing Alien Tech Used ----------------- None Achievements -------------- Let's See Who's Tougher Librarian Safety First Shopping List Troublemaker Challenges ------------ None Game ------ Seed WeightForceShifter Manual? 0 Play Time 00:29:46 Cumulative 1.4 hours Start 2024.06.30 @ 13:12:21 End 2024.06.30 @ 13:43:10 Sessions 1 Manual Loads 0 Difficulty Rogue Special Mode None Game No. 3 Rogue 3 Adventurer 0 Explorer 0 Win Type - Total 0 Types 0/0/0/0/0/0/0/0/0 Lore% 1 Gallery% 6 Achievement% 5 Wizard Run 0 Options --------- Layout 1 ASCII 0 Keyboard 0 Movement Arrows Keybinds 0 Fullscreen 1 Font 24/Tamsyn Map View 50x35 Zoom Use 0% Tactical HUD 1 Map Filters NONE Filters NONE Steam 1 RUN: 16d84835-77dd-4ed4-8fe3-c9c50b2d339a